fUST/lending_fUST_20260602
["ID","MTS","AMOUNT","RATE_DAILY","PERIOD"]
[423747967,1780380641000,-600.0,0.00013971,2]
[423747969,1780380641000,-1545.4003,0.00013972,2]
[423747970,1780380641000,-295.38892539,0.00013972,2]
[423747965,1780380641000,-500.0,0.00013777,2]
[423747960,1780380641000,-304.47809806,0.00013698,2]
[423747966,1780380641000,-151.0,0.000138,2]
[423747962,1780380641000,-1000.0,0.00013699,2]
[423747971,1780380641000,-500.0,0.00013972,2]
[423747973,1780380641000,-350.41535149,0.00013972,2]
[423747974,1780380641000,-500.0,0.00013972,2]
[423747983,1780380641000,-500.0,0.00013972,2]
[423747978,1780380641000,-3065.16,0.00013972,2]
[423747982,1780380641000,-500.0,0.00013972,2]
[423747975,1780380641000,-483.13450955,0.00013972,2]
[423748021,1780380641000,-500.0,0.00013972,2]
[423748006,1780380641000,-501.84191067,0.00013972,2]
[423748016,1780380641000,-500.0,0.00013972,2]
[423748046,1780380641000,-500.0,0.00013972,2]
[423748043,1780380641000,-504.09401519,0.00013972,2]
[423748044,1780380641000,-507.00901293,0.00013972,2]
[423748050,1780380641000,-512.91,0.00013972,2]
[423748052,1780380641000,-500.0,0.00013972,2]
[423748054,1780380641000,-500.4125935,0.00013972,2]
[423748055,1780380641000,-502.83161911,0.00013972,2]
[423748056,1780380641000,-500.0,0.00013972,2]
[423748051,1780380641000,-504.27059396,0.00013972,2]
[423748053,1780380641000,-500.0,0.00013972,2]
[423748057,1780380641000,-585.32016283,0.00013972,2]
[423748060,1780380641000,-503.23535674,0.00013972,2]
[423748059,1780380641000,-500.0,0.00013972,2]
[423748058,1780380641000,-504.79283489,0.00013972,2]
[423748062,1780380641000,-500.0,0.00013972,2]
[423748072,1780380641000,-500.0,0.00013972,2]
[423748073,1780380641000,-500.0,0.00013972,2]
[423748074,1780380641000,-504.94965062,0.00013972,2]
[423748061,1780380641000,-500.0,0.00013972,2]
[423748064,1780380641000,-830.82,0.00013972,2]
[423748063,1780380641000,-500.0,0.00013972,2]
[423748066,1780380641000,-501.66482207,0.00013972,2]
[423748067,1780380641000,-500.0,0.00013972,2]
[423748070,1780380641000,-500.0,0.00013972,2]
[423748068,1780380641000,-619.12635094,0.00013972,2]
[423748065,1780380641000,-500.0,0.00013972,2]
[423748069,1780380641000,-501.20728927,0.00013972,2]
[423748071,1780380641000,-503.0323447,0.00013972,2]
[423748009,1780380641000,-500.0,0.00013972,2]
[423748040,1780380641000,-500.0,0.00013972,2]
[423748045,1780380641000,-286.59912652,0.00013972,2]
[423748075,1780380641000,-500.0,0.00013972,2]
[423748042,1780380641000,-504.16675181,0.00013972,2]
[423748041,1780380641000,-500.0,0.00013972,2]
[423748012,1780380641000,-500.0,0.00013972,2]
[423748013,1780380641000,-508.16116803,0.00013972,2]
[423748011,1780380641000,-501.98080089,0.00013972,2]
[423748015,1780380641000,-500.0,0.00013972,2]
[423748018,1780380641000,-551.33652565,0.00013972,2]
[423748019,1780380641000,-503.74883546,0.00013972,2]
[423748017,1780380641000,-511.73431298,0.00013972,2]
[423748022,1780380641000,-250.73026443,0.00013972,2]
[423748024,1780380641000,-501.64426891,0.00013972,2]
[423748033,1780380641000,-500.0,0.00013972,2]
[423748028,1780380641000,-506.10209673,0.00013972,2]
[423748034,1780380641000,-500.0,0.00013972,2]
[423748023,1780380641000,-500.0,0.00013972,2]
[423748014,1780380641000,-501.90018964,0.00013972,2]
[423748025,1780380641000,-500.0,0.00013972,2]
[423748026,1780380641000,-500.0,0.00013972,2]
[423748049,1780380641000,-500.0,0.00013972,2]
[423748048,1780380641000,-500.0,0.00013972,2]
[423748038,1780380641000,-400.0,0.00013972,2]
[423748036,1780380641000,-500.0,0.00013972,2]
[423748047,1780380641000,-502.37025022,0.00013972,2]
[423748039,1780380641000,-500.0,0.00013972,2]
[423748035,1780380641000,-502.61851439,0.00013972,2]
[423748032,1780380641000,-508.97455481,0.00013972,2]
[423748030,1780380641000,-500.0,0.00013972,2]
[423748031,1780380641000,-500.0,0.00013972,2]
[423748029,1780380641000,-509.76534361,0.00013972,2]
[423748027,1780380641000,-550.97086306,0.00013972,2]
[423748037,1780380641000,-500.0,0.00013972,2]
[423748123,1780380642000,-500.0,0.00013972,2]
[423748120,1780380642000,-500.0,0.00013972,2]
[423748118,1780380642000,-500.0,0.00013972,2]
[423748121,1780380642000,-2813.11,0.00013972,2]
[423748116,1780380642000,-500.0,0.00013972,2]
[423748108,1780380642000,-504.76797019,0.00013972,2]
[423748105,1780380642000,-500.0,0.00013972,2]
[423748109,1780380642000,-500.0,0.00013972,2]
[423748111,1780380642000,-501.92012723,0.00013972,2]
[423748107,1780380642000,-500.0,0.00013972,2]
[423748110,1780380642000,-504.02352692,0.00013972,2]
[423748112,1780380642000,-277.06368946,0.00013972,2]
[423748125,1780380642000,-500.0,0.00013972,2]
[423748129,1780380642000,-500.0,0.00014246,2]
[423748128,1780380642000,-151.0,0.000142,2]
[423748122,1780380642000,-639.34,0.00013972,2]
[423748117,1780380642000,-331.60213575,0.00013972,2]
[423748127,1780380642000,-1000.0,0.00014,2]
[423748124,1780380642000,-500.0,0.00013972,2]
[423748130,1780380642000,-2935.52,0.00014246,2]
[423748131,1780380642000,-503.90436395,0.00014246,2]
[423748132,1780380642000,-412.85791556,0.00014246,2]
[423748142,1780380642000,-513.67191452,0.00014246,2]
[423748136,1780380642000,-524.0003701,0.00014246,2]
[423748133,1780380642000,-755.5079,0.00014246,2]
[423748137,1780380642000,-500.0,0.00014246,2]
[423748106,1780380642000,-501.24469589,0.00013972,2]
[423748134,1780380642000,-3065.16,0.00014246,2]
[423748126,1780380642000,-500.0,0.00013972,2]
[423748104,1780380642000,-500.0,0.00013972,2]
[423748092,1780380642000,-500.0,0.00013972,2]
[423748102,1780380642000,-500.0,0.00013972,2]
[423748138,1780380642000,-500.0,0.00014246,2]
[423748076,1780380642000,-502.77539355,0.00013972,2]
[423748086,1780380642000,-500.0,0.00013972,2]
[423748087,1780380642000,-503.80713783,0.00013972,2]
[423748077,1780380642000,-500.0,0.00013972,2]
[423748088,1780380642000,-508.02474524,0.00013972,2]
[423748078,1780380642000,-500.87517309,0.00013972,2]
[423748083,1780380642000,-500.0,0.00013972,2]
[423748082,1780380642000,-500.0,0.00013972,2]
[423748080,1780380642000,-522.4323249,0.00013972,2]
[423748081,1780380642000,-501.54102226,0.00013972,2]
[423748084,1780380642000,-503.64583212,0.00013972,2]
[423748079,1780380642000,-503.43855135,0.00013972,2]
[423748085,1780380642000,-500.0,0.00013972,2]
[423748094,1780380642000,-500.0,0.00013972,2]
[423748093,1780380642000,-500.0,0.00013972,2]
[423748095,1780380642000,-501.85268296,0.00013972,2]
[423748091,1780380642000,-500.0,0.00013972,2]
[423748089,1780380642000,-500.0,0.00013972,2]
[423748090,1780380642000,-504.17417473,0.00013972,2]
[423748098,1780380642000,-500.0,0.00013972,2]
[423748096,1780380642000,-502.78840851,0.00013972,2]
[423748097,1780380642000,-503.60422571,0.00013972,2]
[423748100,1780380642000,-500.0,0.00013972,2]
[423748099,1780380642000,-500.0,0.00013972,2]
[423748101,1780380642000,-500.0,0.00013972,2]
[423748103,1780380642000,-500.0,0.00013972,2]
[423748113,1780380642000,-500.0,0.00013972,2]
[423748114,1780380642000,-500.0,0.00013972,2]
[423748115,1780380642000,-500.0,0.00013972,2]
[423748135,1780380642000,-202.0490568,0.00014246,2]
[423748210,1780380642000,-500.0,0.00014246,2]
[423748140,1780380642000,-500.0,0.00014246,2]
[423748174,1780380642000,-500.0,0.00014246,2]
[423748179,1780380642000,-500.0,0.00014246,2]
[423748175,1780380642000,-500.0,0.00014246,2]
[423748178,1780380642000,-500.0,0.00014246,2]
[423748195,1780380642000,-442.41241758,0.00014246,2]
[423748198,1780380642000,-534.70530977,0.00014246,2]
[423748186,1780380642000,-500.0,0.00014246,2]
[423748184,1780380642000,-519.71584625,0.00014246,2]
[423748197,1780380642000,-500.0,0.00014246,2]
[423748191,1780380642000,-500.0,0.00014246,2]
[423748188,1780380642000,-500.0,0.00014246,2]
[423748196,1780380642000,-500.0,0.00014246,2]
[423748190,1780380642000,-500.0,0.00014246,2]
[423748173,1780380642000,-286.89751015,0.00014246,2]
[423748194,1780380642000,-501.24133377,0.00014246,2]
[423748193,1780380642000,-503.13262461,0.00014246,2]
[423748199,1780380642000,-500.0,0.00014246,2]
[423748201,1780380642000,-500.0,0.00014246,2]
[423748202,1780380642000,-420.60214075,0.00014246,2]
[423748200,1780380642000,-500.0,0.00014246,2]
[423748203,1780380642000,-500.0,0.00014246,2]
[423748206,1780380642000,-2813.11,0.00014246,2]
[423748208,1780380642000,-632.05983427,0.00014246,2]
[423748209,1780380642000,-500.0,0.00014246,2]
[423748205,1780380642000,-500.0,0.00014246,2]
[423748204,1780380642000,-500.0,0.00014246,2]
[423748141,1780380642000,-500.0,0.00014246,2]
[423748207,1780380642000,-639.34,0.00014246,2]
[423748192,1780380642000,-500.0,0.00014246,2]
[423748177,1780380642000,-500.0,0.00014246,2]
[423748189,1780380642000,-500.0,0.00014246,2]
[423748183,1780380642000,-509.12945765,0.00014246,2]
[423748139,1780380642000,-508.84855224,0.00014246,2]
[423748143,1780380642000,-562.09846624,0.00014246,2]
[423748182,1780380642000,-500.0,0.00014246,2]
[423748147,1780380642000,-197.94279745,0.00014246,2]
[423748146,1780380642000,-567.07608626,0.00014246,2]
[423748145,1780380642000,-500.0,0.00014246,2]
[423748149,1780380642000,-154.5,0.00014246,2]
[423748148,1780380642000,-553.68,0.00014246,2]
[423748150,1780380642000,-504.82942241,0.00014246,2]
[423748159,1780380642000,-501.51774533,0.00014246,2]
[423748144,1780380642000,-516.45361012,0.00014246,2]
[423748154,1780380642000,-500.0,0.00014246,2]
[423748151,1780380642000,-500.0,0.00014246,2]
[423748156,1780380642000,-218.15179431,0.00014246,2]
[423748158,1780380642000,-501.63065275,0.00014246,2]
[423748153,1780380642000,-272.24400883,0.00014246,2]
[423748172,1780380642000,-500.0,0.00014246,2]
[423748170,1780380642000,-500.0,0.00014246,2]
[423748166,1780380642000,-504.26357645,0.00014246,2]
[423748171,1780380642000,-830.82,0.00014246,2]
[423748169,1780380642000,-288.87302501,0.00014246,2]
[423748164,1780380642000,-512.91,0.00014246,2]
[423748160,1780380642000,-159.36957895,0.00014246,2]
[423748168,1780380642000,-454.39561483,0.00014246,2]
[423748162,1780380642000,-500.0,0.00014246,2]
[423748161,1780380642000,-500.0,0.00014246,2]
[423748163,1780380642000,-500.0,0.00014246,2]
[423748167,1780380642000,-500.0,0.00014246,2]
[423748165,1780380642000,-500.0,0.00014246,2]
[423748180,1780380642000,-500.0,0.00014246,2]
[423748252,1780380643000,-464.51477358,0.0001452,2]
[423748255,1780380643000,-2813.11,0.0001452,2]
[423748259,1780380643000,-500.0,0.0001452,2]
[423748254,1780380643000,-595.13088834,0.0001452,2]
[423748263,1780380643000,-371.9,0.00014736,2]
[423748248,1780380643000,-579.29170832,0.0001452,2]
[423748245,1780380643000,-528.63537393,0.0001452,2]
[423748243,1780380643000,-500.0,0.0001452,2]
[423748240,1780380643000,-500.0,0.0001452,2]
[423748241,1780380643000,-335.49249907,0.0001452,2]
[423748238,1780380643000,-500.0,0.0001452,2]
[423748260,1780380643000,-361.63,0.0001462,2]
[423748247,1780380643000,-500.0,0.0001452,2]
[423748265,1780380643000,-2935.52,0.00014794,2]
[423748273,1780380643000,-500.0,0.00014794,2]
[423748261,1780380643000,-365.01,0.00014658,2]
[423748256,1780380643000,-639.34,0.0001452,2]
[423748257,1780380643000,-500.0,0.0001452,2]
[423748264,1780380643000,-500.0,0.00014794,2]
[423748262,1780380643000,-824.0,0.00014709,2]
[423748253,1780380643000,-503.45213488,0.0001452,2]
[423748267,1780380643000,-3065.16,0.00014794,2]
[423748269,1780380643000,-500.0,0.00014794,2]
[423748277,1780380643000,-500.0,0.00014794,2]
[423748279,1780380643000,-500.0,0.00014794,2]
[423748271,1780380643000,-500.0,0.00014794,2]
[423748281,1780380643000,-512.91,0.00014794,2]
[423748280,1780380643000,-500.0,0.00014794,2]
[423748244,1780380643000,-500.0,0.0001452,2]
[423748258,1780380643000,-500.0,0.0001452,2]
[423748242,1780380643000,-500.0,0.0001452,2]
[423748223,1780380643000,-500.0,0.0001452,2]
[423748250,1780380643000,-500.0,0.0001452,2]
[423748275,1780380643000,-553.68,0.00014794,2]
[423748212,1780380643000,-150.37,0.000144,2]
[423748222,1780380643000,-553.68,0.0001452,2]
[423748216,1780380643000,-3065.16,0.0001452,2]
[423748217,1780380643000,-607.7533454,0.0001452,2]
[423748214,1780380643000,-500.0,0.0001452,2]
[423748211,1780380643000,-500.0,0.00014246,2]
[423748213,1780380643000,-500.0,0.00014502,2]
[423748215,1780380643000,-2935.52,0.0001452,2]
[423748218,1780380643000,-225.68349862,0.0001452,2]
[423748219,1780380643000,-500.0,0.0001452,2]
[423748221,1780380643000,-500.0,0.0001452,2]
[423748220,1780380643000,-500.0,0.0001452,2]
[423748225,1780380643000,-574.78817829,0.0001452,2]
[423748246,1780380643000,-608.48043325,0.0001452,2]
[423748236,1780380643000,-500.0,0.0001452,2]
[423748235,1780380643000,-500.0,0.0001452,2]
[423748233,1780380643000,-500.0,0.0001452,2]
[423748224,1780380643000,-506.82995462,0.0001452,2]
[423748226,1780380643000,-500.0,0.0001452,2]
[423748237,1780380643000,-500.0,0.0001452,2]
[423748230,1780380643000,-500.0,0.0001452,2]
[423748232,1780380643000,-830.82,0.0001452,2]
[423748229,1780380643000,-504.87319011,0.0001452,2]
[423748228,1780380643000,-512.91,0.0001452,2]
[423748227,1780380643000,-500.0,0.0001452,2]
[423748231,1780380643000,-500.0,0.0001452,2]
[423748239,1780380643000,-500.0,0.0001452,2]
[423748249,1780380643000,-500.0,0.0001452,2]
[423748251,1780380643000,-500.0,0.0001452,2]
[423748234,1780380643000,-500.0,0.0001452,2]
[423748283,1780380643000,-500.0,0.00014794,2]
[423748315,1780380643000,-530.54921107,0.00015068,2]
[423748285,1780380643000,-500.0,0.00014794,2]
[423748320,1780380643000,-512.91,0.00015068,2]
[423748319,1780380643000,-500.0,0.00015068,2]
[423748326,1780380643000,-500.0,0.00015068,2]
[423748317,1780380643000,-500.0,0.00015068,2]
[423748328,1780380643000,-532.76410377,0.00015068,2]
[423748318,1780380643000,-500.0,0.00015068,2]
[423748324,1780380643000,-618.01867644,0.00015068,2]
[423748327,1780380643000,-500.0,0.00015068,2]
[423748322,1780380643000,-351.51963306,0.00015068,2]
[423748331,1780380643000,-500.0,0.00015068,2]
[423748330,1780380643000,-500.0,0.00015068,2]
[423748342,1780380643000,-5000.0,0.00015078,2]
[423748332,1780380643000,-485.70595885,0.00015068,2]
[423748335,1780380643000,-500.0,0.00015068,2]
[423748316,1780380643000,-553.68,0.00015068,2]
[423748333,1780380643000,-548.96098662,0.00015068,2]
[423748334,1780380643000,-500.0,0.00015068,2]
[423748340,1780380643000,-5042.85778095,0.00015078,2]
[423748336,1780380643000,-2813.11,0.00015068,2]
[423748337,1780380643000,-639.34,0.00015068,2]
[423748339,1780380643000,-500.0,0.00015068,2]
[423748338,1780380643000,-197.17104487,0.00015068,2]
[423748344,1780380643000,-469.43,0.00015246,2]
[423748343,1780380643000,-432.58,0.00015126,2]
[423748345,1780380643000,-452.05,0.00015246,2]
[423748346,1780380643000,-500.0,0.00015266,2]
[423748348,1780380643000,-500.0,0.00015342,2]
[423748349,1780380643000,-2935.52,0.00015342,2]
[423748350,1780380643000,-2390.72151674,0.00015342,2]
[423748284,1780380643000,-830.82,0.00014794,2]
[423748341,1780380643000,-5000.0,0.00015078,2]
[423748329,1780380643000,-500.0,0.00015068,2]
[423748347,1780380643000,-151.0,0.000153,2]
[423748325,1780380643000,-500.0,0.00015068,2]
[423748282,1780380643000,-500.0,0.00014794,2]
[423748323,1780380643000,-830.82,0.00015068,2]
[423748286,1780380643000,-153.78591013,0.00014794,2]
[423748298,1780380643000,-500.0,0.00014794,2]
[423748299,1780380643000,-540.27727967,0.00014794,2]
[423748290,1780380643000,-533.98327289,0.00014794,2]
[423748300,1780380643000,-500.0,0.00014794,2]
[423748301,1780380643000,-2813.11,0.00014794,2]
[423748289,1780380643000,-500.0,0.00014794,2]
[423748291,1780380643000,-500.0,0.00014794,2]
[423748292,1780380643000,-500.0,0.00014794,2]
[423748294,1780380643000,-500.0,0.00014794,2]
[423748296,1780380643000,-500.0,0.00014794,2]
[423748297,1780380643000,-500.0,0.00014794,2]
[423748293,1780380643000,-500.0,0.00014794,2]
[423748287,1780380643000,-500.0,0.00014794,2]
[423748302,1780380643000,-639.34,0.00014794,2]
[423748295,1780380643000,-500.0,0.00014794,2]
[423748321,1780380643000,-500.0,0.00015068,2]
[423748311,1780380643000,-2935.52,0.00015068,2]
[423748312,1780380643000,-3065.16,0.00015068,2]
[423748314,1780380643000,-508.52126641,0.00015068,2]
[423748308,1780380643000,-404.75,0.00014973,2]
[423748310,1780380643000,-500.0,0.00015068,2]
[423748309,1780380643000,-1000.0,0.00015,2]
[423748306,1780380643000,-151.0,0.000148,2]
[423748313,1780380643000,-507.51852215,0.00015068,2]
[423748303,1780380643000,-500.0,0.00014794,2]
[423748304,1780380643000,-500.0,0.00014794,2]
[423748307,1780380643000,-392.92,0.00014843,2]
[423748305,1780380643000,-590.63538567,0.00014794,2]
[423748386,1780380644000,-3065.16,0.00015616,2]
[423748393,1780380644000,-500.0,0.00015616,2]
[423748398,1780380644000,-303.05765715,0.00015616,2]
[423748399,1780380644000,-500.0,0.00015616,2]
[423748387,1780380644000,-553.68,0.00015616,2]
[423748379,1780380644000,-160.0,0.00015552,2]
[423748378,1780380644000,-160.0,0.00015552,2]
[423748389,1780380644000,-500.0,0.00015616,2]
[423748382,1780380644000,-10090.12456172,0.000156,2]
[423748397,1780380644000,-500.0,0.00015616,2]
[423748377,1780380644000,-150.37,0.000155,2]
[423748396,1780380644000,-500.0,0.00015616,2]
[423748391,1780380644000,-512.91,0.00015616,2]
[423748390,1780380644000,-500.0,0.00015616,2]
[423748394,1780380644000,-500.0,0.00015616,2]
[423748395,1780380644000,-500.0,0.00015616,2]
[423748392,1780380644000,-830.82,0.00015616,2]
[423748400,1780380644000,-2813.11,0.00015616,2]
[423748401,1780380644000,-639.34,0.00015616,2]
[423748411,1780380644000,-166.76194805,0.00015751,2]
[423748412,1780380644000,-184.85766938,0.00015751,2]
[423748410,1780380644000,-183.28910611,0.00015751,2]
[423748402,1780380644000,-500.0,0.00015616,2]
[423748384,1780380644000,-500.0,0.00015616,2]
[423748404,1780380644000,-170.1280059,0.0001573,2]
[423748388,1780380644000,-485.97431223,0.00015616,2]
[423748381,1780380644000,-185.0,0.0001557,2]
[423748368,1780380644000,-500.0,0.00015342,2]
[423748385,1780380644000,-2935.52,0.00015616,2]
[423748406,1780380644000,-161.88957614,0.00015733,2]
[423748353,1780380644000,-500.0,0.00015342,2]
[423748356,1780380644000,-512.91,0.00015342,2]
[423748351,1780380644000,-674.43848326,0.00015342,2]
[423748354,1780380644000,-500.0,0.00015342,2]
[423748355,1780380644000,-500.0,0.00015342,2]
[423748357,1780380644000,-405.24860266,0.00015342,2]
[423748359,1780380644000,-457.64849447,0.00015342,2]
[423748358,1780380644000,-99.97216467,0.00015342,2]
[423748352,1780380644000,-553.68,0.00015342,2]
[423748360,1780380644000,-273.19934086,0.00015342,2]
[423748371,1780380644000,-2813.11,0.00015342,2]
[423748380,1780380644000,-444.0,0.0001557,2]
[423748363,1780380644000,-127.51656281,0.00015342,2]
[423748372,1780380644000,-639.34,0.00015342,2]
[423748364,1780380644000,-500.0,0.00015342,2]
[423748361,1780380644000,-372.48343719,0.00015342,2]
[423748367,1780380644000,-500.0,0.00015342,2]
[423748362,1780380644000,-724.61,0.00013972,2]
[423748365,1780380644000,-500.0,0.00015342,2]
[423748370,1780380644000,-500.0,0.00015342,2]
[423748373,1780380644000,-500.0,0.00015342,2]
[423748374,1780380644000,-250.0,0.00015342,2]
[423748375,1780380644000,-720.0,0.00015368,2]
[423748376,1780380644000,-151.0,0.000154,2]
[423748383,1780380644000,-1297.81915112,0.000156,2]
[423748369,1780380644000,-162.2898549,0.00015342,2]
[423748408,1780380644000,-178.81253675,0.00015733,2]
[423748366,1780380644000,-500.0,0.00015342,2]
[423748409,1780380644000,-164.92372139,0.00015751,2]
[423748441,1780380644000,-1297.81915112,0.000159,2]
[423748439,1780380644000,-500.0,0.0001589,2]
[423748438,1780380644000,-639.34,0.0001589,2]
[423748440,1780380644000,-10090.12456172,0.000159,2]
[423748437,1780380644000,-2813.11,0.0001589,2]
[423748454,1780380644000,-563.54632166,0.00016164,2]
[423748447,1780380644000,-500.0,0.00016029,2]
[423748453,1780380644000,-553.68,0.00016164,2]
[423748456,1780380644000,-512.91,0.00016164,2]
[423748455,1780380644000,-500.0,0.00016164,2]
[423748446,1780380644000,-151.0,0.00016,2]
[423748448,1780380644000,-10090.12456172,0.000161,2]
[423748445,1780380644000,-1000.0,0.00016,2]
[423748457,1780380644000,-830.82,0.00016164,2]
[423748450,1780380644000,-500.0,0.00016164,2]
[423748458,1780380644000,-500.0,0.00016164,2]
[423748451,1780380644000,-2935.52,0.00016164,2]
[423748452,1780380644000,-3065.16,0.00016164,2]
[423748467,1780380644000,-10090.12456172,0.000162,2]
[423748463,1780380644000,-500.0,0.00016164,2]
[423748465,1780380644000,-639.34,0.00016164,2]
[423748466,1780380644000,-500.0,0.00016164,2]
[423748464,1780380644000,-2813.11,0.00016164,2]
[423748460,1780380644000,-500.0,0.00016164,2]
[423748461,1780380644000,-500.0,0.00016164,2]
[423748462,1780380644000,-214.64752081,0.00016164,2]
[423748449,1780380644000,-1297.81915112,0.000161,2]
[423748436,1780380644000,-500.0,0.0001589,2]
[423748459,1780380644000,-500.0,0.00016164,2]
[423748444,1780380644000,-1721.13219305,0.00016,2]
[423748443,1780380644000,-824.0,0.00015979,2]
[423748405,1780380644000,-194.50139121,0.00015733,2]
[423748407,1780380644000,-186.34216047,0.00015733,2]
[423748414,1780380644000,-150.0,0.00015765,2]
[423748416,1780380644000,-1415.0,0.00015765,2]
[423748417,1780380644000,-3630.0,0.00015765,2]
[423748413,1780380644000,-150.0,0.00015765,2]
[423748415,1780380644000,-150.0,0.00015765,2]
[423748424,1780380644000,-2935.52,0.0001589,2]
[423748421,1780380644000,-1297.81915112,0.000158,2]
[423748418,1780380644000,-1836.0,0.00015765,2]
[423748419,1780380644000,-2206.0,0.00015765,2]
[423748423,1780380644000,-500.0,0.0001589,2]
[423748403,1780380644000,-218.72474481,0.00015724,2]
[423748422,1780380644000,-151.0,0.000158,2]
[423748442,1780380644000,-151.0,0.000159,2]
[423748420,1780380644000,-10090.12456172,0.000158,2]
[423748434,1780380644000,-500.0,0.0001589,2]
[423748435,1780380644000,-500.0,0.0001589,2]
[423748431,1780380644000,-500.0,0.0001589,2]
[423748430,1780380644000,-830.82,0.0001589,2]
[423748429,1780380644000,-512.91,0.0001589,2]
[423748428,1780380644000,-500.0,0.0001589,2]
[423748425,1780380644000,-3065.16,0.0001589,2]
[423748432,1780380644000,-500.0,0.0001589,2]
[423748433,1780380644000,-500.0,0.0001589,2]
[423748426,1780380644000,-553.68,0.0001589,2]
[423748427,1780380644000,-500.0,0.0001589,2]
[423748476,1780380645000,-151.0,0.000164,2]
[423748480,1780380645000,-553.68,0.00016438,2]
[423748478,1780380645000,-2935.52,0.00016438,2]
[423748481,1780380645000,-403.20703894,0.00016438,2]
[423748479,1780380645000,-3065.16,0.00016438,2]
[423748482,1780380645000,-512.91,0.00016438,2]
[423748477,1780380645000,-232.15132736,0.00016438,2]
[423748475,1780380645000,-10090.12456172,0.000164,2]
[423748483,1780380645000,-830.82,0.00016438,2]
[423748484,1780380645000,-500.0,0.00016438,2]
[423748472,1780380645000,-1721.13219305,0.000163,2]
[423748474,1780380645000,-36855.85498,0.00016378,2]
[423748487,1780380645000,-274.06749803,0.00016438,2]
[423748473,1780380645000,-151.0,0.000163,2]
[423748470,1780380645000,-824.0,0.00016299,2]
[423748471,1780380645000,-824.0,0.00016299,2]
[423748469,1780380645000,-1721.13219305,0.000162,2]
[423748485,1780380645000,-500.0,0.00016438,2]
[423748488,1780380645000,-724.61,0.00014246,2]
[423748497,1780380645000,-500.0,0.00012598,2]
[423748486,1780380645000,-500.0,0.00016438,2]
[423748468,1780380645000,-1297.81915112,0.000162,2]
[423748504,1780380645000,-471.67927002,0.00012598,2]
[423748507,1780380645000,-500.0,0.00012598,2]
[423748506,1780380645000,-471.67927002,0.00012598,2]
[423748508,1780380645000,-66.21259818,0.00012598,2]
[423748505,1780380645000,-500.0,0.00012598,2]
[423748498,1780380645000,-489.23714207,0.00012598,2]
[423748499,1780380645000,-10.76285793,0.00012598,2]
[423748489,1780380645000,-424.36289609,0.0001452,2]
[423748500,1780380645000,-500.0,0.00012598,2]
[423748496,1780380645000,-500.0,0.00012598,2]
[423748494,1780380645000,-500.0,0.00012598,2]
[423748493,1780380645000,-500.0,0.00012598,2]
[423748491,1780380645000,-500.0,0.00012598,2]
[423748502,1780380645000,-360.8890193,0.00012598,2]
[423748503,1780380645000,-500.0,0.00012598,2]
[423748492,1780380645000,-500.0,0.00012598,2]
[423748490,1780380645000,-500.0,0.00012598,2]
[423748495,1780380645000,-500.0,0.00012598,2]
[423748501,1780380645000,-500.0,0.00012598,2]
[423748511,1780380647000,-360.69996,0.00012598,2]
[423748573,1780380648000,-878.605263,0.00016562,2]
[423748548,1780380648000,-233.507941,0.00016464,2]